bitfinex/quotes_BTCUSD_20241028
["timestamp","ask_amount","ask_price","bid_price","bid_amount"]
[1730105120883,1.04124225,68381.0,68380.0,1.43949541]
[1730105121125,1.05524225,68381.0,68380.0,1.43949541]
[1730105121346,1.06924225,68381.0,68380.0,1.43949541]
[1730105121557,1.05524225,68381.0,68380.0,1.43949541]
[1730105121951,1.06924225,68381.0,68380.0,1.43949541]
[1730105123328,1.05524225,68381.0,68380.0,1.43949541]
[1730105123757,0.87875883,68381.0,68380.0,1.43949541]
[1730105123978,0.95300054,68381.0,68380.0,1.43949541]
[1730105124223,0.96700054,68381.0,68380.0,1.43949541]
[1730105124446,0.98100054,68381.0,68380.0,1.43949541]
[1730105124718,1.06924225,68381.0,68380.0,1.43949541]
[1730105126219,0.98100054,68381.0,68380.0,1.43949541]
[1730105127941,0.95300054,68381.0,68380.0,1.43949541]
[1730105128147,0.96700054,68381.0,68380.0,1.43949541]
[1730105128355,0.98100054,68381.0,68380.0,1.43949541]
[1730105128569,1.06924225,68381.0,68380.0,1.43949541]
[1730105129453,0.98100054,68381.0,68380.0,1.43949541]
[1730105129674,1.06924225,68381.0,68380.0,1.43949541]
[1730105135782,1.07143755,68381.0,68380.0,1.43949541]
[1730105137619,1.11558949,68381.0,68380.0,1.43949541]
[1730105138065,1.02734778,68381.0,68380.0,1.43949541]
[1730105140177,0.76720607,68381.0,68380.0,1.43949541]
[1730105140400,0.80829584,68381.0,68380.0,1.43949541]
[1730105141075,0.85748314,68381.0,68380.0,1.43949541]
[1730105142575,0.76924143,68381.0,68380.0,1.43679541]
[1730105142787,0.85748314,68381.0,68380.0,1.43679541]
[1730105145957,0.87248314,68381.0,68380.0,1.43679541]
[1730105151740,0.87028784,68381.0,68380.0,1.43679541]
[1730105152031,0.87248288,68381.0,68380.0,1.43679541]
[1730105152432,0.91619992,68381.0,68380.0,1.43679541]
[1730105152677,0.87248288,68381.0,68380.0,1.43679541]
[1730105153763,0.91622401,68381.0,68380.0,1.43679541]
[1730105153917,0.87248288,68381.0,68380.0,1.43679541]
[1730105154723,0.91623494,68381.0,68380.0,1.43679541]
[1730105155414,0.9140399,68381.0,68380.0,1.43679541]
[1730105155637,0.87028784,68381.0,68380.0,1.43679541]
[1730105156284,0.87248288,68381.0,68380.0,1.43679541]
[1730105156687,0.93812969,68381.0,68380.0,1.43679541]
[1730105157648,0.87248288,68381.0,68380.0,1.43679541]
[1730105161490,0.98181795,68381.0,68380.0,1.43679541]
[1730105162263,0.95890543,68381.0,68380.0,1.43679541]
[1730105162414,0.98181956,68381.0,68380.0,1.43679541]
[1730105164282,0.98204705,68381.0,68380.0,1.43679541]
[1730105164955,0.87248449,68381.0,68380.0,1.43679541]
[1730105165182,0.98204705,68381.0,68380.0,1.43679541]
[1730105166512,1.00495854,68381.0,68380.0,1.43679541]
[1730105170924,0.89539598,68381.0,68380.0,1.43679541]
[1730105172955,1.0049809,68381.0,68380.0,1.43679541]
[1730105173164,0.89539598,68381.0,68380.0,1.43679541]
[1730105173364,0.89039598,68381.0,68380.0,1.43679541]
[1730105173481,0.89539598,68381.0,68380.0,1.43679541]
[1730105173685,0.89039598,68381.0,68380.0,1.43679541]
[1730105173911,0.89539598,68381.0,68380.0,1.43679541]
[1730105174399,1.0049809,68381.0,68380.0,1.43679541]
[1730105174602,0.89039598,68381.0,68380.0,1.43679541]
[1730105178150,0.9999809,68381.0,68380.0,1.43679541]
[1730105181141,0.89039598,68381.0,68380.0,1.43679541]
[1730105181377,0.9999809,68381.0,68380.0,1.43679541]
[1730105181637,0.89039598,68381.0,68380.0,1.43679541]
[1730105184797,0.80215427,68381.0,68380.0,1.43679541]
[1730105184998,0.89039598,68381.0,68380.0,1.43679541]
[1730105187148,0.97807545,68381.0,68380.0,1.43679541]
[1730105187348,0.89039598,68381.0,68380.0,1.43679541]
[1730105189150,0.99999609,68381.0,68380.0,1.43679541]
[1730105192158,0.88984171,68381.0,68380.0,1.43679541]
[1730105192363,0.97808342,68381.0,68380.0,1.43679541]
[1730105193183,0.89039598,68381.0,68380.0,1.43679541]
[1730105193614,0.44515427,68381.0,68380.0,1.60899541]
[1730105193819,0.37399448,68381.0,68380.0,1.60899541]
[1730105194016,0.37399448,68381.0,68380.0,1.61418005]
[1730105194431,0.35999448,68381.0,68380.0,1.60899541]
[1730105194647,0.17257654,68381.0,68380.0,1.60899541]
[1730105194929,0.18457654,68381.0,68380.0,1.60899541]
[1730105195138,0.1823815,68381.0,68380.0,1.61417657]
[1730105195568,0.18022691,68381.0,68380.0,1.62246095]
[1730105195994,0.19322691,68381.0,68380.0,1.62246095]
[1730105196202,0.18342143,68381.0,68380.0,1.62245692]
[1730105196421,0.17042143,68381.0,68380.0,1.61417252]
[1730105196614,0.17442143,68381.0,68380.0,1.61417252]
[1730105196850,0.17342143,68381.0,68380.0,1.61417252]
[1730105197273,0.17642143,68381.0,68380.0,1.61417252]
[1730105198780,0.17422691,68381.0,68380.0,1.61416585]
[1730105199425,0.17642143,68381.0,68380.0,1.61416585]
[1730105200065,0.17642143,68381.0,68380.0,1.61416468]
[1730105201933,0.17342143,68381.0,68380.0,1.61416468]
[1730105202341,0.17542143,68381.0,68380.0,1.61416468]
[1730105202749,0.17342143,68381.0,68380.0,1.61416468]
[1730105202954,0.17042143,68381.0,68380.0,1.61416468]
[1730105203155,0.17242143,68381.0,68380.0,1.61416468]
[1730105203599,0.17442143,68381.0,68380.0,1.61416169]
[1730105204711,0.17606743,68381.0,68380.0,1.61416169]
[1730105208858,0.16857093,68381.0,68380.0,1.61416169]
[1730105209068,0.17600334,68381.0,68380.0,1.61416169]
[1730105209979,0.17600334,68381.0,68380.0,1.60899541]
[1730105210187,0.17600334,68381.0,68380.0,1.61416007]
[1730105211301,0.17600334,68381.0,68380.0,1.6141602]
[1730105214940,0.17600334,68381.0,68380.0,1.61416189]
[1730105216102,0.17594134,68381.0,68380.0,1.61416189]
[1730105217829,0.17594134,68381.0,68380.0,1.6141645]
[1730105218564,0.17594134,68381.0,68380.0,1.60899541]
[1730105218772,0.17594134,68381.0,68380.0,1.61416574]
[1730105220370,0.17594134,68381.0,68380.0,1.62244427]
[1730105221805,0.17594134,68381.0,68380.0,1.62245364]
[1730105225230,0.016646,68381.0,68380.0,1.82660483]
[1730105225425,0.14622,68390.0,68388.0,0.0911]
[1730105225614,0.001646,68391.0,68389.0,0.54362682]
[1730105225821,0.001646,68391.0,68390.0,0.02385682]
[1730105225822,0.147864,68391.0,68390.0,0.02385682]
[1730105226488,0.001646,68391.0,68390.0,0.02385682]
[1730105227109,0.147864,68391.0,68390.0,0.02385682]
[1730105227356,0.147864,68391.0,68390.0,0.01348328]
[1730105227572,0.147864,68391.0,68390.0,0.0238439]
[1730105227778,0.147864,68391.0,68390.0,0.0258439]
[1730105228157,0.15531153,68391.0,68390.0,0.0258439]
[1730105229530,0.15531153,68391.0,68390.0,0.01548328]
[1730105229971,0.15531153,68391.0,68390.0,0.002]
[1730105230174,0.15531153,68391.0,68390.0,0.0154605]
[1730105233353,0.15531153,68391.0,68390.0,0.01028378]
[1730105233556,0.00909353,68391.0,68390.0,0.0154547]
[1730105233780,0.00909353,68391.0,68390.0,0.21637872]
[1730105234152,0.001646,68391.0,68390.0,0.205939]
[1730105234362,0.001646,68391.0,68390.0,0.352159]
[1730105234568,0.00910472,68391.0,68390.0,0.352159]
[1730105234781,0.001646,68391.0,68390.0,0.790819]
[1730105235018,0.001646,68391.0,68390.0,0.79599373]
[1730105235228,0.001646,68391.0,68390.0,0.81462597]
[1730105235438,0.001646,68391.0,68390.0,0.81461978]
[1730105235879,0.001646,68391.0,68390.0,0.9826589]
[1730105236127,0.001646,68391.0,68390.0,1.14418743]
[1730105236348,0.00149692,68392.0,68391.0,0.005939]
[1730105236573,0.00149692,68392.0,68391.0,0.89735412]
[1730105236801,0.00149692,68392.0,68391.0,1.34463003]
[1730105237029,0.00149692,68392.0,68391.0,1.22661714]
[1730105237942,0.00149692,68392.0,68391.0,1.22761714]
[1730105238149,0.00149692,68392.0,68391.0,1.23061714]
[1730105240078,0.00149692,68392.0,68391.0,1.2305934]
[1730105240290,0.001646,68399.0,68398.0,0.319442]
[1730105240492,0.001646,68399.0,68398.0,0.95535659]
[1730105241104,0.001646,68399.0,68398.0,0.93155581]
[1730105241300,0.001646,68399.0,68398.0,0.95530989]
[1730105241513,0.001646,68399.0,68398.0,0.94798103]
[1730105241728,0.001646,68399.0,68398.0,0.95098103]
[1730105242134,0.001646,68399.0,68398.0,0.96130989]
[1730105242342,0.001646,68399.0,68398.0,0.95098103]
[1730105243651,0.001646,68399.0,68398.0,1.03922274]
[1730105245217,0.001646,68399.0,68398.0,1.02579752]
[1730105245419,0.001646,68399.0,68398.0,1.03921607]
[1730105246451,0.001646,68399.0,68398.0,1.0495398]
[1730105246653,0.001646,68399.0,68398.0,1.29536632]
[1730105246846,0.001646,68399.0,68398.0,1.33161446]
[1730105247087,0.001646,68399.0,68398.0,1.22634538]
[1730105247313,0.001646,68399.0,68398.0,1.22534538]
[1730105247533,0.001646,68399.0,68398.0,1.33457818]
[1730105247691,0.001646,68399.0,68398.0,1.33857818]
[1730105247917,0.001646,68399.0,68398.0,1.33557818]
[1730105248072,0.001646,68399.0,68398.0,1.33857818]
[1730105248721,0.001646,68399.0,68398.0,1.30251255]
[1730105248836,0.001646,68399.0,68398.0,1.3385715]
[1730105249367,0.001646,68399.0,68398.0,1.22927802]
[1730105251390,0.001646,68408.0,68407.0,0.347722]
[1730105251632,0.001646,68408.0,68407.0,0.79968837]
[1730105252487,0.001646,68408.0,68407.0,0.79968925]
[1730105254519,0.001646,68408.0,68407.0,0.81001198]
[1730105254695,0.001646,68408.0,68407.0,0.81401198]
[1730105255835,0.001646,68408.0,68407.0,0.81701198]
[1730105256035,0.001646,68408.0,68407.0,0.81702761]
[1730105259431,0.001646,68408.0,68407.0,0.8345236]
[1730105259599,0.00534945,68417.0,68416.0,0.005939]
[1730105259798,0.00534945,68417.0,68416.0,0.44959248]
[1730105259799,0.146164,68417.0,68416.0,0.44959248]
[1730105261140,0.146164,68417.0,68416.0,0.45159248]
[1730105261348,0.146164,68417.0,68416.0,0.45986363]
[1730105261714,0.146164,68417.0,68416.0,0.45892463]
[1730105262736,0.146158,68419.0,68418.0,0.005]
[1730105262948,0.146158,68419.0,68418.0,0.03316348]
[1730105263719,0.146158,68419.0,68418.0,0.03317096]
[1730105263932,0.147158,68419.0,68418.0,0.03317096]
[1730105264370,0.148158,68419.0,68418.0,0.04144559]
[1730105264930,0.148158,68419.0,68418.0,0.05144559]
[1730105267453,0.148158,68419.0,68418.0,0.04317442]
[1730105267675,0.148158,68419.0,68418.0,0.05145451]
[1730105269565,0.002,68419.0,68418.0,0.19855351]
[1730105269777,0.002,68419.0,68418.0,0.65030961]
[1730105269986,0.002,68419.0,68418.0,0.64738677]
[1730105270411,0.002,68419.0,68418.0,0.64738957]
[1730105270650,0.001,68419.0,68418.0,0.64738957]
[1730105270868,0.001646,68421.0,68420.0,0.152095]
[1730105271082,0.001646,68421.0,68420.0,0.63737557]
[1730105272624,0.001646,68421.0,68420.0,0.64037557]
[1730105273064,0.00915634,68421.0,68420.0,0.64037557]
[1730105273286,0.00915634,68421.0,68420.0,0.64337557]
[1730105273496,0.00915634,68421.0,68420.0,0.49721957]
[1730105273902,0.00915634,68421.0,68420.0,0.64337557]
[1730105276061,0.001646,68421.0,68420.0,0.64337557]
[1730105279584,0.001646,68421.0,68420.0,0.619565]
[1730105279886,0.00916887,68421.0,68420.0,0.64337213]
[1730105280738,0.00916887,68421.0,68420.0,0.82397213]
[1730105281179,0.001646,68421.0,68420.0,0.82397213]
[1730105281600,0.001646,68421.0,68420.0,0.78797213]
[1730105282702,0.001646,68421.0,68420.0,0.79893159]
[1730105282925,0.001646,68421.0,68420.0,0.9494354]
[1730105283620,0.001646,68421.0,68420.0,0.9724354]
[1730105283771,0.001646,68421.0,68420.0,1.08568534]
[1730105284809,0.001646,68421.0,68420.0,1.05091875]
[1730105284976,0.001646,68421.0,68420.0,0.96146904]
[1730105285559,0.001646,68421.0,68420.0,0.95846904]
[1730105286016,0.001646,68421.0,68420.0,0.96146904]
[1730105286218,0.001646,68422.0,68421.0,0.266853]
[1730105286392,0.001646,68422.0,68421.0,0.96397704]
[1730105286819,0.001646,68422.0,68421.0,1.07722698]
[1730105287991,0.001646,68422.0,68421.0,1.08022698]
[1730105288589,0.001646,68422.0,68421.0,1.0802082]
[1730105289156,0.001646,68422.0,68421.0,1.0832082]
[1730105289597,0.001646,68422.0,68421.0,0.79645445]
[1730105289808,0.001646,68422.0,68421.0,0.47530145]
[1730105290448,0.00920913,68422.0,68421.0,0.51607773]
[1730105290708,0.00920913,68422.0,68421.0,0.51307773]
[1730105290942,0.15536013,68422.0,68421.0,0.45896069]
[1730105291142,0.15536013,68422.0,68421.0,0.46196069]
[1730105291344,0.15536013,68422.0,68421.0,0.45896069]
[1730105291760,0.15536013,68422.0,68421.0,0.46930068]
[1730105291964,0.15536013,68422.0,68421.0,0.47230068]
[1730105292407,0.15536013,68422.0,68421.0,0.45896069]
[1730105292807,0.15536013,68422.0,68421.0,0.46396069]
[1730105293219,0.15536013,68422.0,68421.0,0.46096069]
[1730105293424,0.15536013,68422.0,68421.0,0.47130241]
[1730105293634,0.15536013,68422.0,68421.0,0.47330241]
[1730105295598,0.00920913,68422.0,68421.0,0.47330241]
[1730105295808,0.15536013,68422.0,68421.0,0.47330241]
[1730105296030,0.26861007,68422.0,68421.0,0.46296069]
[1730105296240,0.26861007,68422.0,68421.0,0.4546891]
[1730105296445,0.26861007,68422.0,68421.0,0.4546902]
[1730105296650,0.41911388,68422.0,68421.0,0.4546902]
[1730105296854,0.50441388,68422.0,68421.0,0.4506902]
[1730105297062,0.50941388,68422.0,68421.0,0.4506902]
[1730105297273,0.50941388,68422.0,68421.0,0.4526902]
[1730105297472,0.50941388,68422.0,68421.0,0.4506902]
[1730105297876,0.51541388,68422.0,68421.0,0.4516902]
[1730105298270,0.61011388,68422.0,68421.0,0.4516902]
[1730105298514,0.61011388,68422.0,68421.0,0.44652]
[1730105298939,0.61011388,68422.0,68421.0,0.44852]
[1730105299416,0.61011388,68422.0,68421.0,0.44652]
[1730105299679,0.61611388,68422.0,68421.0,0.44752]
[1730105301970,0.61611388,68422.0,68421.0,0.45268814]
[1730105302321,0.61611388,68422.0,68421.0,0.44752]
[1730105306661,0.73436382,68422.0,68421.0,0.45752]
[1730105306863,0.62111388,68422.0,68421.0,0.45752]
[1730105307067,0.72111388,68422.0,68421.0,0.45752]
[1730105307477,0.83436382,68422.0,68421.0,0.45752]
[1730105307887,0.83936382,68422.0,68421.0,0.45752]
[1730105308832,0.84436382,68422.0,68421.0,0.45752]
[1730105309179,0.699053,68421.0,68420.0,0.000822]
[1730105309317,2.78676281,68421.0,68420.0,0.000822]
[1730105309518,2.79428455,68421.0,68420.0,0.000822]
[1730105310708,2.80828455,68421.0,68420.0,0.001822]
[1730105311165,0.89397735,68421.0,68420.0,0.001822]
[1730105311496,0.87997735,68421.0,68420.0,0.000822]
[1730105312380,0.89297735,68421.0,68420.0,0.000822]
[1730105312558,1.00628112,68421.0,68420.0,0.000822]
[1730105312986,1.00728112,68421.0,68420.0,0.000822]
[1730105313313,1.02128112,68421.0,68420.0,0.000822]
[1730105316360,1.13460369,68421.0,68420.0,0.000822]
[1730105317158,1.02129052,68421.0,68420.0,0.000822]
[1730105321673,1.01629052,68421.0,68420.0,0.000822]
[1730105321887,0.82027735,68421.0,68420.0,0.000822]
[1730105322571,0.93359052,68421.0,68420.0,0.000822]
[1730105324265,0.93523652,68421.0,68420.0,0.000822]
[1730105325786,0.83703652,68421.0,68420.0,0.000822]
[1730105331853,0.92783652,68421.0,68420.0,0.000822]
[1730105332691,1.12224969,68421.0,68420.0,0.000822]
[1730105333509,1.00893652,68421.0,68420.0,0.000822]
[1730105333715,0.99493652,68421.0,68420.0,0.000822]
[1730105333965,0.98093652,68421.0,68420.0,0.000822]
[1730105334185,0.99493652,68421.0,68420.0,0.000822]
[1730105334393,0.98603772,68421.0,68420.0,0.000822]
[1730105336592,0.73103772,68421.0,68420.0,0.000822]
[1730105336811,0.73603772,68421.0,68420.0,0.000822]
[1730105337712,0.75893541,68421.0,68420.0,0.000822]
[1730105338482,0.80311961,68421.0,68420.0,0.000822]
[1730105339113,0.72201961,68421.0,68420.0,0.000822]
[1730105341623,0.69912192,68421.0,68420.0,0.000822]
[1730105342459,0.60832192,68421.0,68420.0,0.000822]
[1730105342906,0.49500875,68421.0,68420.0,0.000822]
[1730105343346,0.48300875,68421.0,68420.0,0.000822]
[1730105343564,0.43882455,68421.0,68420.0,0.000822]
[1730105344061,0.43882455,68421.0,68420.0,0.081322]
[1730105344283,0.44382455,68421.0,68420.0,0.081322]
[1730105344965,0.44801814,68421.0,68420.0,0.081322]
[1730105345188,0.56633131,68421.0,68420.0,0.000822]
[1730105346689,0.45101814,68421.0,68420.0,0.000822]
[1730105346906,0.33601814,68421.0,68420.0,0.098422]
[1730105347117,0.18551433,68421.0,68420.0,0.178422]
[1730105347344,0.18551433,68421.0,68420.0,0.1835987]
[1730105348464,0.17151433,68421.0,68420.0,0.1835987]
[1730105348706,0.18551433,68421.0,68420.0,0.1835987]
[1730105349813,0.17151433,68421.0,68420.0,0.1835987]
[1730105350246,0.18551433,68421.0,68420.0,0.1835987]
[1730105351341,0.03936133,68421.0,68420.0,0.1835987]
[1730105351780,0.18551433,68421.0,68420.0,0.1835987]
[1730105352852,0.17151433,68421.0,68420.0,0.1835987]
[1730105353039,0.16151433,68421.0,68420.0,0.1835987]
[1730105353524,0.16551433,68421.0,68420.0,0.1835987]
[1730105354775,0.16551433,68421.0,68420.0,0.178422]
[1730105354986,0.16551433,68421.0,68420.0,0.18359132]
[1730105355431,0.16551433,68421.0,68420.0,0.18359131]
[1730105357552,0.01936133,68421.0,68420.0,0.18359131]
[1730105358443,0.01936133,68421.0,68420.0,0.183589]
[1730105359757,0.16551433,68421.0,68420.0,0.183589]
[1730105361352,0.01936133,68421.0,68420.0,0.183589]
[1730105362194,0.01936133,68421.0,68420.0,0.1835869]
[1730105366883,0.01183959,68421.0,68420.0,0.3297429]
[1730105367999,0.01183959,68421.0,68420.0,0.44305607]
[1730105368240,0.01936187,68421.0,68420.0,0.44305607]
[1730105369356,0.01936187,68421.0,68420.0,0.45132746]
[1730105369617,0.01183959,68421.0,68420.0,0.45132746]
[1730105369831,0.01936187,68421.0,68420.0,0.45133155]
[1730105370294,0.01183959,68421.0,68420.0,0.45133155]
[1730105372856,0.00383959,68421.0,68420.0,0.45133155]
[1730105373279,0.00683959,68421.0,68420.0,0.45133155]
[1730105373489,0.00983959,68421.0,68420.0,0.45133155]
[1730105373696,0.00983959,68421.0,68420.0,0.45134314]
[1730105374760,0.01736573,68421.0,68420.0,0.45134314]
[1730105377026,0.00983959,68421.0,68420.0,0.45134314]
[1730105377443,0.00983959,68421.0,68420.0,0.43789117]
[1730105377648,0.00983959,68421.0,68420.0,0.4513552]
[1730105378062,0.00683959,68421.0,68420.0,0.4513552]
[1730105378288,0.00383959,68421.0,68420.0,0.46171512]
[1730105378513,0.00583959,68421.0,68420.0,0.46171512]
[1730105378729,0.00483959,68421.0,68420.0,0.46171512]
[1730105379399,0.00583959,68421.0,68420.0,0.34840195]
[1730105380317,0.01337069,68421.0,68420.0,0.34840195]
[1730105381350,0.00583959,68421.0,68420.0,0.34840195]
[1730105384224,0.00583959,68421.0,68420.0,0.36595964]
[1730105384948,0.00583959,68421.0,68420.0,0.34840195]
[1730105385158,0.00583959,68421.0,68420.0,0.36595964]
[1730105386375,0.00583959,68421.0,68420.0,0.47927281]
[1730105387733,0.00483959,68421.0,68420.0,0.47927281]
[1730105387982,0.00383959,68421.0,68420.0,0.47927281]
[1730105388656,0.00383959,68421.0,68420.0,0.4968525]
[1730105389838,0.00383959,68421.0,68420.0,0.38353933]
[1730105390468,0.01137221,68421.0,68420.0,0.38353933]
[1730105391440,0.00383959,68421.0,68420.0,0.38353933]
[1730105391650,0.00383959,68421.0,68420.0,0.42734665]
[1730105392386,0.00383959,68421.0,68420.0,0.40350736]
[1730105392638,0.00383959,68421.0,68420.0,0.38354064]
[1730105393577,0.00383959,68421.0,68420.0,0.51985381]
[1730105393831,0.00383959,68421.0,68420.0,0.83231677]
[1730105394073,0.001646,68422.0,68421.0,0.169153]
[1730105394290,0.001646,68422.0,68421.0,0.64202741]
[1730105394524,0.001646,68422.0,68421.0,0.53235275]
[1730105395748,0.001646,68422.0,68421.0,0.53531639]
[1730105395974,0.001646,68422.0,68421.0,0.53831639]
[1730105397362,0.001646,68422.0,68421.0,0.54695728]
[1730105398297,0.001646,68422.0,68421.0,0.69746109]
[1730105398507,0.001646,68422.0,68421.0,1.13592109]
[1730105398717,0.001646,68422.0,68421.0,1.1272802]
[1730105399798,0.001646,68422.0,68421.0,1.34055975]
[1730105400030,0.001646,68422.0,68421.0,1.22724658]
[1730105400238,0.001646,68422.0,68421.0,1.22724663]
[1730105400668,0.001646,68422.0,68421.0,1.3375598]
[1730105400876,0.001646,68422.0,68421.0,1.45087255]
[1730105401093,0.001646,68422.0,68421.0,1.33755938]
[1730105401858,0.001646,68422.0,68421.0,1.33455938]
[1730105401954,0.001646,68422.0,68421.0,1.33755938]
[1730105402193,0.001646,68422.0,68421.0,1.34055938]
[1730105402438,0.001646,68422.0,68421.0,1.34847188]
[1730105402675,0.001646,68422.0,68421.0,1.47990539]
[1730105403659,0.001646,68422.0,68421.0,1.35548556]
[1730105403905,0.001646,68422.0,68421.0,1.34036411]
[1730105404139,0.001646,68425.0,68421.0,1.34036411]
[1730105404140,0.001646,68425.0,68424.0,0.146147]
[1730105404379,0.001646,68425.0,68424.0,0.77012113]
[1730105405283,0.001646,68425.0,68424.0,0.6418493]
[1730105405525,0.001646,68425.0,68424.0,0.59804266]
[1730105405989,0.001646,68425.0,68424.0,0.64484947]
[1730105406462,0.00920016,68425.0,68424.0,0.45189566]
[1730105406699,0.001646,68425.0,68424.0,0.59804266]
[1730105407422,0.001646,68425.0,68424.0,0.60104266]
[1730105407641,0.001646,68425.0,68424.0,0.64484943]
[1730105407867,0.001646,68425.0,68424.0,0.64184943]
[1730105408150,0.001646,68425.0,68424.0,0.59804266]
[1730105408397,0.001646,68425.0,68424.0,0.64784967]
[1730105408627,0.001646,68425.0,68424.0,0.64484967]
[1730105408865,0.001646,68425.0,68424.0,0.64184967]
[1730105409097,0.001646,68425.0,68424.0,0.64484967]
[1730105409566,0.001646,68425.0,68424.0,0.60104266]
[1730105409794,0.001646,68425.0,68424.0,0.587587]
[1730105410019,0.001646,68425.0,68424.0,0.66674221]
[1730105410275,0.001646,68425.0,68424.0,0.60103169]
[1730105410946,0.001646,68425.0,68424.0,0.64783919]
[1730105411173,0.001646,68425.0,68424.0,0.60403169]
[1730105411410,0.001646,68425.0,68424.0,0.64783954]
[1730105412122,0.001646,68425.0,68424.0,0.60403169]
[1730105413723,0.001646,68425.0,68424.0,0.64784375]
[1730105414656,0.001646,68425.0,68424.0,0.60403371]
[1730105414896,0.001646,68425.0,68424.0,0.64784485]
[1730105415614,0.001646,68425.0,68424.0,0.63439814]
[1730105416094,0.001646,68425.0,68424.0,0.590587]
[1730105416621,0.001646,68425.0,68424.0,0.60403577]
[1730105417797,0.001646,68425.0,68424.0,0.6478491]
[1730105418484,0.001646,68425.0,68424.0,0.64784919]
[1730105418728,0.001646,68425.0,68424.0,0.60403577]
[1730105418962,0.001646,68425.0,68424.0,0.64784986]
[1730105420328,0.001646,68425.0,68424.0,0.61438685]
[1730105422014,0.001646,68425.0,68424.0,0.590587]
[1730105422245,0.001646,68425.0,68424.0,0.61439479]
[1730105427790,0.001646,68425.0,68424.0,0.84189483]
[1730105428483,0.001646,68425.0,68424.0,0.84189951]
[1730105428702,0.001646,68425.0,68424.0,0.77616317]
[1730105429420,0.001646,68425.0,68424.0,0.84190279]
[1730105429664,0.151126,68434.0,68428.0,0.146137]
[1730105429665,0.1250854,68434.0,68428.0,0.146137]
[1730105429904,0.21887745,68432.0,68428.0,0.146137]
[1730105430128,0.0075611,68433.0,68429.0,0.01345941]
[1730105430371,0.1250854,68434.0,68430.0,0.0051763]
[1730105430604,0.00956168,68432.0,68431.0,0.0051763]
[1730105430852,0.002,68432.0,68431.0,0.0051763]
[1730105431096,0.00956253,68432.0,68431.0,0.0051763]
[1730105431325,0.002,68432.0,68431.0,0.0051763]
[1730105431565,0.00956701,68432.0,68431.0,0.0051763]
[1730105431765,0.01255841,68432.0,68431.0,0.0051763]
[1730105432003,0.01486284,68432.0,68431.0,0.0051763]
[1730105432741,0.01486284,68432.0,68431.0,0.01346265]
[1730105433859,0.01286284,68432.0,68431.0,0.01346265]
[1730105434582,0.01586284,68432.0,68431.0,0.01346265]
[1730105435971,0.16399284,68432.0,68431.0,0.01346265]
[1730105436199,0.26659284,68432.0,68431.0,0.01346265]
[1730105437374,0.26359284,68432.0,68431.0,0.01346265]
[1730105437601,0.26859284,68432.0,68431.0,0.01446265]
[1730105437820,0.26559284,68432.0,68431.0,0.01446265]
[1730105438036,0.26559284,68432.0,68431.0,0.01546265]
[1730105438037,0.27059284,68432.0,68431.0,0.01546265]
[1730105438679,0.27059284,68432.0,68431.0,0.0071763]
[1730105439517,0.27059284,68432.0,68431.0,0.01546787]
[1730105439720,0.27059284,68432.0,68431.0,0.01547313]
[1730105440147,0.27059284,68432.0,68431.0,0.01629613]
[1730105441404,0.27059284,68432.0,68431.0,0.002823]
[1730105441612,0.27059284,68432.0,68431.0,0.01629667]
[1730105444044,0.43109665,68432.0,68431.0,0.01629667]
[1730105444261,0.60659665,68432.0,68431.0,0.002823]
[1730105445365,0.76420946,68432.0,68431.0,0.002823]
[1730105445638,0.65089629,68432.0,68431.0,0.002823]
[1730105445857,0.76920946,68432.0,68431.0,0.002823]
[1730105446084,0.86681351,68432.0,68431.0,0.002823]
[1730105446306,0.86881351,68432.0,68431.0,0.002823]
[1730105446522,0.78120946,68432.0,68431.0,0.002823]
[1730105446707,0.86371856,68432.0,68431.0,0.001823]
[1730105446965,0.86371856,68432.0,68431.0,0.000823]
[1730105446966,0.85871856,68432.0,68431.0,0.000823]
[1730105447204,0.77620946,68432.0,68431.0,0.000823]
[1730105447430,0.77420946,68432.0,68431.0,0.000823]
[1730105447655,0.9017244,68432.0,68431.0,0.000823]
[1730105447941,1.91277582,68432.0,68431.0,0.000823]
[1730105448182,1.69681746,68432.0,68431.0,0.000823]
[1730105448610,1.80610046,68432.0,68431.0,0.000823]
[1730105448824,1.69181746,68432.0,68431.0,0.000823]
[1730105449036,1.80110713,68432.0,68431.0,0.000823]
[1730105449476,1.95161094,68432.0,68431.0,0.000823]
[1730105449690,1.70081746,68432.0,68431.0,0.000823]
[1730105449909,1.71481746,68432.0,68431.0,0.000823]
[1730105450129,1.71281746,68432.0,68431.0,0.000823]
[1730105450568,1.80017152,68432.0,68431.0,0.000823]
[1730105451008,1.81217152,68432.0,68431.0,0.000823]
[1730105451220,1.80017152,68432.0,68431.0,0.000823]
[1730105451444,1.66000352,68432.0,68431.0,0.000823]
[1730105451671,1.29237052,68432.0,68431.0,0.000823]
[1730105451885,1.25650729,68432.0,68431.0,0.000823]
[1730105452309,1.27050729,68432.0,68431.0,0.000823]
[1730105452522,1.27250729,68432.0,68431.0,0.000823]
[1730105452734,1.19101646,68432.0,68431.0,0.000823]
[1730105452989,1.2159135,68432.0,68431.0,0.000823]
[1730105453195,1.2279135,68432.0,68431.0,0.000823]
[1730105453630,1.2259135,68432.0,68431.0,0.000823]
[1730105454270,1.2279135,68432.0,68431.0,0.000823]
[1730105454481,1.27155485,68432.0,68431.0,0.000823]
[1730105454702,1.27355485,68432.0,68431.0,0.000823]
[1730105454910,1.42405866,68432.0,68431.0,0.000823]
[1730105455117,1.56042163,68432.0,68431.0,1e-06]
[1730105455800,0.282,68425.0,68424.0,0.43844]
[1730105456053,0.034,68423.0,68422.0,0.000823]
[1730105456265,1.70341681,68423.0,68422.0,0.000823]
[1730105456472,3.07468016,68423.0,68422.0,0.000823]
[1730105456884,3.22518397,68423.0,68422.0,0.000823]
[1730105457100,3.07468016,68423.0,68422.0,0.000823]
[1730105457326,3.11440516,68423.0,68422.0,0.000823]
[1730105457536,3.11240516,68423.0,68422.0,0.000823]
[1730105457743,3.11440516,68423.0,68422.0,0.000823]
[1730105459210,3.12840516,68423.0,68422.0,0.000823]
[1730105459396,3.15130489,68423.0,68422.0,0.000823]
[1730105459860,3.3018087,68423.0,68422.0,0.000823]
[1730105460276,3.32471005,68423.0,68422.0,0.000823]
[1730105460697,3.29671005,68423.0,68422.0,0.000823]
[1730105460924,3.29671005,68423.0,68396.0,0.21887745]
[1730105460925,0.163198,68400.0,68396.0,0.21887745]
[1730105461170,0.37651117,68400.0,68396.0,0.21887745]
[1730105461385,0.38631333,68400.0,68396.0,0.21887745]
[1730105461597,0.38631333,68400.0,68389.0,0.0819]
[1730105462087,0.38631333,68400.0,68384.0,0.0816]
[1730105462088,0.39131333,68400.0,68384.0,0.0816]
[1730105462301,1.05619033,68400.0,68384.0,0.0816]